Cogmind - Beta 12 @@@ ROGUE MODE // 2023.12.10 @ 14:46:27 Player: zapruda Result: Destroyed by G-34 Mercenary with Small Laser Performance ------------- Evolutions (0) 0 Regions Visited (1) 200 Robots Destroyed (13) 65 Value Destroyed (362) 362 Prototype IDs (0) 0 Alien Tech Used (0) 0 Bonus (0) 0 TOTAL SCORE: 627 Bonus ------- None Cogmind --------- Core Integrity 0/250 Matter 210/300 Energy 21/100 System Corruption 0% Temperature Cool (6) Movement Hovering (120) Ox1 Location -10/Materials Parts ------- > --- POWER (1) -------- (None) > --- PROPULSION (2) --- Improved Hover Unit > --- UTILITY (2) ------ Small Storage Unit > --- WEAPON (2) ------- Medium Laser Spread Laser > --- INVENTORY (8) ---- Improved Hover Unit Improved Hover Unit Spread Laser Peak State ------------ > --- POWER ------------ Ion Engine > --- PROPULSION ------- Improved Hover Unit Improved Hover Unit > --- UTILITY ---------- Small Storage Unit > --- WEAPON ----------- Heavy EM Pulse Gun Heavy EM Pulse Gun > --- INVENTORY -------- Ion Engine Light Treads Light Treads Improved Hover Unit Improved Hover Unit Medium Laser Spread Laser [Rating: 11] Favorites ----------- Power Ion Engine Engine Ion Engine Propulsion Improved Hover Unit Leg Aluminum Leg Wheel Wheel Hover Unit Improved Hover Unit Utility Small Storage Unit Storage Small Storage Unit Weapon Heavy EM Pulse Gun Energy Gun Heavy EM Pulse Gun Ballistic Gun Light Assault Rifle Build | -11 -10 ------- Run | Jun Mat Slots Evolved . | . . Power . | . . Propulsion . | . . Utility . | . . Weapon . | . . Parts Attached 11 | . 11 Power 1 | . 1 Engine 1 | . 1 Core . | . . Reactor . | . . Propulsion 6 | . 6 Treads . | . . Leg . | . . Wheel 2 | . 2 Hover 4 | . 4 Flight . | . . Utility . | . . Device . | . . Storage . | . . Processor . | . . Hackware . | . . Protection . | . . Artifact . | . . Weapon 4 | . 4 Energy Gun 4 | . 4 Energy Cannon . | . . Ballistic Gun . | . . Ballistic Cannon . | . . Launcher . | . . Special Weapon . | . . Impact Weapon . | . . Slashing Weapon . | . . Piercing Weapon . | . . Special Melee Weapon . | . . Unidentified Prototypes . | . . Parts Lost 8 | . 8 Power 2 | . 2 Propulsion 4 | . 4 Utility . | . . Weapon 2 | . 2 Highest Loss Streak 6 | . 6 To Critical Strikes . | . . Average Slot Usage (%) 78 | . 78 Engine 12 | . 12 Leg 10 | . 10 Hover 13 | . 13 Storage 14 | . 14 Energy Gun 19 | . 19 Ballistic Gun 7 | . 7 Naked Turns . | . . Heaviest Build 16 | 12 16 Greatest Support 26 | 20 26 Greatest Overweight (x) 3 | . 3 Average Overweight (x) . | . . Largest Inventory Capacity 8 | . 8 Average Capacity 8 | . 8 Most Carried 8 | . 8 Average Carried 6 | . 6 Final Capacity 8 | 8 8 Final Carried 6 | 6 3 Class Distribution -------------------- 100% | Mutant Dominant Class ---------------- Mutant | -10/Materials Resources | -11 -10 ----------- Run | Jun Mat Matter Collected 262 | 200 62 Remotely . | . . Salvage Created 440 | . 440 Parts 27 | . 27 Haulers Intercepted . | . . Recyclers Shooed . | . . Parts Field Recycled . | . . Retrieved Matter . | . . Parts Self-Destructed . | . . Prevented . | . . Kills | -11 -10 ------- Run | Jun Mat Combat Hostiles Destroyed 12 | . 12 Guns 12 | . 12 Classes Destroyed 3 | . 3 Mechanic 1 | . 1 Swarmer 3 | . 3 Grunt 9 | . 9 Best Kill Streak 5 | . 5 Combat Bots Only 5 | . 5 Max Kills in Single Turn 1 | . 1 Gunslinging . | . . Exploded . | . . Melee . | . . Uniques/NPCs Destroyed . | . . Combat | -11 -10 -------- Run | Jun Mat Damage Taken 1061 | . 1061 Core 257 | . 257 Absorbed by Shields . | . . Core Remaining (%) 100 | 100 . Volleys Fired 64 | . 64 Largest 2 | . 2 Hottest 110 | . 110 Shots Fired 112 | . 112 Gun 112 | . 112 Cannon . | . . Launcher . | . . Special . | . . Kinetic 37 | . 37 Thermal 57 | . 57 Explosive . | . . Electromagnetic 18 | . 18 Robot Hit Streak 10 | . 10 Robot Miss Streak 6 | . 6 Penetration Max . | . . Secondary Targets . | . . Shots Hit Robots 76 | . 76 Core Hits 31 | . 31 Critical Kills 1 | . 1 Critical Parts Destroyed . | . . Critical Strikes 3 | . 3 Burn 2 | . 2 Destroy 1 | . 1 Melee Attacks . | . . Impact . | . . Slashing . | . . Piercing . | . . Sneak Attacks . | . . Combat Hostiles . | . . Follow-up Attacks . | . . Damage Inflicted 934 | . 934 Guns 934 | . 934 Cannons . | . . Explosions . | . . Melee . | . . Ramming . | . . Kinetic 175 | . 175 Thermal 528 | . 528 Explosive . | . . Electromagnetic 231 | . 231 Impact . | . . Slashing . | . . Piercing . | . . Highest Corruption . | . . Average Corruption . | . . Corruption Purged . | . . Corruption Blocked . | . . Overload Shots . | . . Overflow Damage . | . . Projectiles . | . . Explosions . | . . Melee . | . . Knockbacks . | . . Impact . | . . Kinetic . | . . Secondary . | . . Self-Inflicted Damage . | . . Shots . | . . Rammed . | . . Targets Rammed . | . . Kicked . | . . Crushed . | . . Highest Temperature 329 | . 329 Average Temperature 140 | . 140 Received Heat Transfer 513 | . 513 Effects 4 | . 4 Interference 3 | . 3 Matter Decay 1 | . 1 Siege Activations . | . . Robots Corrupted . | . . Combat Hostiles . | . . Parts Fried . | . . Impact Corruptions . | . . Robots Melted . | . . Combat Hostiles . | . . Parts Melted 2 | . 2 Heat Transferred 1303 | . 1303 Parts Sabotaged . | . . Parts Stolen . | . . Parts Stripped . | . . Power Chain Reactions . | . . Missiles Intercepted . | . . Alert | -11 -10 ------- Run | Jun Mat Peak Influence 295 | . 295 Initial . | . . Average 153 | . 153 Maximum Alert Level 1 | . 1 Low Security (%) 49 | . 49 Level 1 50 | . 50 Level 2 . | . . Level 3 . | . . Level 4 . | . . Level 5 . | . . High Security . | . . Max Security . | . . Squads Dispatched 3 | . 3 Investigation 2 | . 2 Extermination . | . . Reinforcement 1 | . 1 Assault . | . . Garrison . | . . Intercept . | . . Searches Triggered . | . . Construction Impeded . | . . Haulers Reinforced . | . . Active Scanning Responses . | . . Cargo Convoy Interrupts . | . . Stealth | -11 -10 --------- Run | Jun Mat Distress Signals 2 | . 2 Communications Jammed . | . . Distress Signals . | . . Times Spotted 18 | . 18 Peak Tracking Total 8 | . 8 Tactical Retreats 5 | . 5 Traps | -11 -10 ------- Run | Jun Mat Traps Triggered 2 | . 2 Indirectly . | . . Trap Hack Attempts . | . . Triggered . | . . Disarmed . | . . Reprogrammed . | . . Reused . | . . Traps Extracted . | . . Installed . | . . Triggered . | . . Machines | -11 -10 ---------- Run | Jun Mat Machines Disabled . | . . Max in Single Turn . | . . Machines Repaired . | . . Machines Sabotaged . | . . Overloaded Fab Kills . | . . Hacking | -11 -10 --------- Run | Jun Mat Machines Accessed . | . . Terminals . | . . Fabricators . | . . Repair Stations . | . . Recycling Units . | . . Scanalyzers . | . . Garrison Access . | . . Total Hacks . | . . Successful . | . . Failed . | . . Catastrophic . | . . Database Lockouts . | . . Manual . | . . Terminals . | . . Fabricators . | . . Repair Stations . | . . Recycling Units . | . . Scanalyzers . | . . Garrison Access . | . . Terminal Hacks . | . . Fabricator Hacks . | . . Repair Station Hacks . | . . Recycling Unit Hacks . | . . Scanalyzer . | . . Garrison Access Hacks . | . . Unauthorized Hacks . | . . Terminals . | . . Fabricators . | . . Repair Stations . | . . Recycling Units . | . . Scanalyzers . | . . Garrison Access . | . . Data Cores Recovered . | . . Used . | . . Hacking Detections . | . . Full Trace Events . | . . Feedback Events . | . . Feedback Blocked . | . . Robot Schematics Acquired . | . . Robots Built . | . . Authchips . | . . Time . | . . Total Robot Build Rating . | . . Part Schematics Acquired . | . . Parts Built . | . . Authchips . | . . Time . | . . Total Part Build Rating . | . . Parts Repaired . | . . Time . | . . Parts Recycled . | . . Recycled Matter . | . . Retrieved Matter . | . . Retrieved Components . | . . Parts Scanalyzed . | . . Part Schematics Acquired . | . . Parts Damaged . | . . Bothacking | -11 -10 ------------ Run | Jun Mat Used RIF Installer . | . . Robots Hacked . | . . Non-combat . | . . Combat . | . . Robot Hacks Applied . | . . Relay Couplers Released . | . . Fabnet Peak Effective % . | . . Robots Rewired . | . . Allies Hacked . | . . Hacks Repelled . | . . Allies | -11 -10 -------- Run | Jun Mat Total Allies . | . . Largest Group . | . . Highest-Rated Group . | . . Highest-Rated Ally . | . . Total Orders . | . . Ally Attacks . | . . Total Damage . | . . Kills . | . . Allies Corrupted . | . . Allies Melted . | . . Intel | -11 -10 ------- Run | Jun Mat Robot Analysis Total . | . . Derelict Logs Recovered . | . . Drone Launches . | . . Drone Recoveries . | . . Exploration | -11 -10 ------------- Run | Jun Mat Turns Passed 428 | . 428 Spaces Moved 174 | 1 173 Core 5 | . 5 Treads . | . . Legs 59 | 1 58 Wheels 6 | . 6 Hover 104 | . 104 Flight . | . . Fastest Speed 56 | 120 56 Average Speed 115 | 120 115 Slowest Speed 200 | 120 200 Overloaded Moves . | . . Propulsion Burnouts . | . . Robots Hopped . | . . Cave-ins Triggered . | . . Exploration Rate (%) 32 | 2 62 Regions Visited 1 Branch Regions . Pre-discovered Areas . | . . Known Exits Taken . | . . Unknown Exits Taken 1 | 1 . Scrap Searched . | . . Spaces Dug . | . . Terrain Destroyed . | . . Melee . | . . Projectile . | . . AOE . | . . Terrain Rammed . | . . Walls Destroyed . | . . Machines Disabled . | . . Actions | -11 -10 --------- Run | Jun Mat Total 301 | . 301 Wait 38 | . 38 Move 173 | . 173 Hop . | . . Pick Up 9 | . 9 Fast Attach . | . . Attach 10 | . 10 Detach . | . . Swap 1 | . 1 Drop 6 | . 6 Fire 64 | . 64 Melee . | . . Ram . | . . Kick . | . . Crush . | . . Escape Stasis . | . . Rewire . | . . Trap . | . . Miscellaneous . | . . Route ------- -11/Junkyard -10/Materials (discovered 2 exits: [*Mat x2]) History --------- Turn | Location | Event 1 | -11/Junkyard | Discovered new exit (range 0) 1 | -11/Junkyard | Entered Materials 236 | -10/Materials | Discovered new exit (range 12) 325 | -10/Materials | Discovered new exit (range 16) 329 | -10/Materials | Build established: Mutant 350 | -10/Materials | Core integrity fell below 50% 416 | -10/Materials | Lost 6 parts (2p2n2w) 416 | -10/Materials | Core integrity fell below 20% 429 | -10/Materials | Destroyed by G-34 Mercenary with Small Laser Last Messages --------------- 00383_ R-06 Scavenger collects Ion Engine. 00383_ Ion Engine destroyed. 00384_ Acquired 26 matter. 00385_ Hover Unit destroyed. 00386_ R-06 Scavenger collects Ion Engine. 00388_ Overheating: Matter decay (-35). 00390_ R-06 Scavenger collects Sml. Laser. 00394_ Ion Engine melted. 00394_ G-34 Mercenary destroyed. 00396_ Overheating: System interference. 00396_ Spread Laser temporarily disabled. 00396_ R-06 Scavenger collects Sml. Laser. 00401_ R-06 Scavenger collects Aluminum Leg. 00404_ R-06 Scavenger collects Heat Sink. 00406_ G-34 Mercenary suffers critical hit (Burn). 00410_ G-34 Mercenary overheating. 00410_ R-06 Scavenger collects Sml. Laser. 00411_ G-34 Mercenary overheating. 00414_ Ion Engine melted. 00414_ G-34 Mercenary destroyed. Map ----- +----------------------------------------------------+ | ???????# # # """#??# | | ???????########### # ???#####/## | | ?????????# ##########?##### # | | ?????????# #??????????#[[ # | | ?????????# ""#?######???# # | | ?????????# """ Y"#? #???#[[ # | | ?????????# """ ""# #???# %%# | | ?????????# """ # """ #???# [ ^^^# | | ?????????# + """ #???# ^^# | | ?????????# = = # """ #???##### %+ | | ?????????# # #???????# %# | | ?????????# #?######???????# # | | ?????????# #######??????????????# # | | ?????????# #????????????????????# # | | ?????????# #????????????????????# + | | ?????????# #????????????????????# # | | ?????????# ###??#####???????????# # | | ?????????# # ? #???????????# # | | ?????????# # """ #???????????# # | | ?????????# # """ #???????????# # | | ?????????# # """ #???????????# # | | ?????????# # #???????????# | | ?????????# #"" #???????????# | | ?????????# #"T #???????????# | | ?????????# #""% #???????????# | | ?????????# #@%= #???????????# | | ?????????# ##g#######???????????# | | ?????????# %%[ #???????????????# # | | ?? / [ #???????????????? ? | | ? "" """# #???????????????????? | | ? "T """# #??????????????????? | | ??"" ""?## #??????????????????? | | ?? ??# #??????????????????? | | ??#??#????# """" #??????????????????? | | ??????????# """" #??????????????????? | | ??????????# """" #??????????????????? | | ??????????# #??????????????????? | | ??????????# ?? #??????????????????? | | ??????????+ ##??+###??????????????????? | | ??????????# < #?????????????????????????? | | ??????????# #?????????????????????????? | | ??????????#####?????????????????????????? | | ????????????????????????????????????????? | | ????????????????????????????????????????? | | ????????????????????????????????????????? | | ????????????????????????????????????????? | | ????????????????????????????????????????? | | | | | | | +----------------------------------------------------+ Best States ------------- Heat Dissipation 25 Energy Generation 10 Energy Capacity 250 Matter Stores 300 Matter Capacity 300 Sight Range 16 Terrain Scan Density 10 Evasion (%) 55 Item Schematics ----------------- None Robot Schematics ------------------ None Fabricated ------------ Nothing Alien Tech Used ----------------- None Achievements -------------- None Challenges ------------ None Game ------ Seed TrackerTransportWings Manual? 0 Play Time 00:06:27 Cumulative 107.3 hours Start 2023.12.10 @ 14:43:11 End 2023.12.10 @ 14:46:27 Sessions 1 Manual Loads 0 Difficulty Rogue Special Mode None Game No. 154 Rogue 154 Adventurer 0 Explorer 0 Win Type - Total 0 Types 0/0/0/0/0/0/0/0/0 Lore% 32 Gallery% 58 Achievement% 40 Wizard Run 0 Options --------- ASCII 0 Keyboard 0 Movement Mouse Keybinds 0 Fullscreen 2 Font 18/SmallcapsGlow Map View 76x50 Tactical HUD 1 Map Filters NONE Filters NONE Steam 1 RUN: b6c5fbbb-1434-4688-b84a-5467fa8076e9